fUSD/lending_fUSD_20241119
["ID","MTS","AMOUNT","RATE_DAILY","PERIOD"]
[342659254,1732027865962,-195.78455287,0.00021706,4]
[342659255,1732027865973,-150.0,0.00021706,4]
[342659256,1732027865983,-150.0,0.00021706,4]
[342659257,1732027865992,-150.0,0.00021744,2]
[342659258,1732027866002,-436.17,0.00021745,2]
[342659259,1732027866016,-563.82,0.00021745,2]
[342659260,1732027866026,-793.08,0.00021745,2]
[342659261,1732027866037,-150.0,0.00021753,2]
[342659262,1732027866047,-162.57645101,0.00021768,2]
[342659263,1732027866059,-150.0,0.00021773,2]
[342659264,1732027866068,-150.0,0.00021803,2]
[342659265,1732027866078,-150.0,0.00021815,2]
[342659266,1732027866087,-1557.8,0.00021826,30]
[342659267,1732027866097,-150.0,0.00021873,2]
[342659268,1732027866106,-1500.0,0.00021878,2]
[342659269,1732027866116,-150.0,0.00021888,2]
[342659270,1732027866125,-999.0,0.0002189,5]
[342659271,1732027866135,-999.0,0.0002189,5]
[342659272,1732027866145,-999.0,0.0002189,5]
[342659273,1732027866155,-999.0,0.0002189,5]
[342659274,1732027866164,-999.0,0.0002189,5]
[342659275,1732027866176,-999.0,0.0002189,5]
[342659276,1732027866186,-999.0,0.0002189,5]
[342659277,1732027866195,-999.0,0.0002189,5]
[342659278,1732027866206,-999.0,0.0002189,5]
[342659279,1732027866216,-999.0,0.0002189,5]
[342659280,1732027866225,-999.0,0.0002189,5]
[342659281,1732027866235,-999.0,0.0002189,5]
[342659282,1732027866245,-999.0,0.0002189,5]
[342659283,1732027866256,-999.0,0.0002189,5]
[342659284,1732027866269,-999.0,0.0002189,5]
[342659285,1732027866278,-999.0,0.0002189,5]
[342659286,1732027866288,-999.0,0.0002189,5]
[342659287,1732027866297,-999.0,0.0002189,5]
[342659288,1732027866307,-999.0,0.0002189,5]
[342659289,1732027866318,-999.0,0.0002189,5]
[342659290,1732027866328,-1094.64505504,0.0002189,5]
[342659291,1732027866342,-150.0,0.00021891,2]
[342659292,1732027866351,-150.0,0.00021895,2]
[342659293,1732027866361,-150.0,0.00021915,2]
[342659294,1732027866371,-350.0,0.00021917,2]
[342659295,1732027866382,-212.49727561,0.00021917,2]
[342659296,1732027866392,-827.0,0.00021917,2]
[342659297,1732027866402,-827.0,0.00021917,2]
[342659298,1732027866415,-827.0,0.00021917,2]
[342659299,1732027866424,-827.0,0.00021917,2]
[342659300,1732027866434,-827.0,0.00021917,2]
[342659301,1732027866445,-827.0,0.00021917,2]
[342659302,1732027866455,-827.0,0.00021917,2]
[342659303,1732027866465,-827.0,0.00021917,2]
[342659304,1732027866476,-827.0,0.00021917,2]
[342659305,1732027866487,-827.0,0.00021917,2]
[342659306,1732027866499,-827.0,0.00021917,2]
[342659307,1732027866511,-827.0,0.00021917,2]
[342659308,1732027866521,-827.0,0.00021917,2]
[342659309,1732027866531,-827.0,0.00021917,2]
[342659310,1732027866540,-827.0,0.00021917,2]
[342659311,1732027866550,-827.0,0.00021917,2]
[342659312,1732027866560,-827.0,0.00021917,2]
[342659313,1732027866570,-827.0,0.00021917,2]
[342659314,1732027866580,-827.0,0.00021917,2]
[342659315,1732027866590,-827.0,0.00021917,2]
[342659316,1732027866600,-827.0,0.00021917,2]
[342659317,1732027866610,-827.0,0.00021917,2]
[342659318,1732027866619,-827.0,0.00021917,2]
[342659319,1732027866628,-827.16,0.00021917,2]
[342659320,1732027866638,-10360.63,0.00021917,7]
[342659321,1732027866648,-4125.24,0.00021917,2]
[342659322,1732027866658,-10360.63,0.00021917,7]
[342659323,1732027866667,-10360.63,0.00021917,7]
[342659324,1732027866677,-10360.63,0.00021917,7]
[342659325,1732027866686,-10360.63,0.00021917,7]
[342659326,1732027866696,-10360.63,0.00021917,7]
[342659327,1732027866705,-10360.63,0.00021917,7]
[342659328,1732027866715,-10360.63,0.00021917,7]
[342659329,1732027866725,-10360.63,0.00021917,7]
[342659330,1732027866734,-10360.63,0.00021917,7]
[342659331,1732027866744,-10360.63,0.00021917,7]
[342659332,1732027866753,-10360.63,0.00021917,7]
[342659333,1732027866767,-10360.63,0.00021917,7]
[342659334,1732027866777,-10360.63,0.00021917,7]
[342659335,1732027866786,-10360.63,0.00021917,7]
[342659336,1732027866796,-10360.63,0.00021917,7]
[342659337,1732027866805,-10360.63,0.00021917,7]
[342659338,1732027866815,-10360.63,0.00021917,7]
[342659339,1732027866824,-10360.63,0.00021917,7]
[342659340,1732027866834,-10360.63,0.00021917,7]
[342659341,1732027866844,-10360.63,0.00021917,7]
[342659342,1732027866853,-10360.63,0.00021917,7]
[342659343,1732027866863,-10360.63,0.00021917,7]
[342659344,1732027866873,-10360.66925604,0.00021917,7]
[342659345,1732027866883,-985.89,0.00021917,2]
[342659346,1732027866893,-985.89,0.00021917,2]
[342659347,1732027866902,-985.89,0.00021917,2]
[342659348,1732027866913,-985.89,0.00021917,2]
[342659349,1732027866923,-985.89,0.00021917,2]
[342659350,1732027866933,-985.89,0.00021917,2]
[342659351,1732027866942,-985.89,0.00021917,2]
[342659352,1732027866952,-985.89,0.00021917,2]
[342659353,1732027866962,-985.89,0.00021917,2]
[342659354,1732027866972,-985.89,0.00021917,2]
[342659355,1732027866982,-985.89,0.00021917,2]
[342659356,1732027866991,-985.89,0.00021917,2]
[342659357,1732027867001,-985.89,0.00021917,2]
[342659358,1732027867013,-985.89,0.00021917,2]
[342659359,1732027867024,-985.89,0.00021917,2]
[342659360,1732027867034,-985.89,0.00021917,2]
[342659361,1732027867043,-985.89,0.00021917,2]
[342659362,1732027867052,-985.89,0.00021917,2]
[342659363,1732027867062,-985.89,0.00021917,2]
[342659364,1732027867072,-985.89,0.00021917,2]
[342659365,1732027867081,-985.89,0.00021917,2]
[342659366,1732027867090,-985.89,0.00021917,2]
[342659367,1732027867099,-2957.63,0.00021918,2]
[342659368,1732027867108,-150.0,0.00021934,2]
[342659369,1732027867117,-150.0,0.00021936,2]
[342659370,1732027867280,-150.0,0.00021954,2]
[342659371,1732027867290,-258.56467882,0.00021957,2]
[342659372,1732027867299,-900.0,0.00022,23]
[342659373,1732027867308,-3000.0,0.00022,10]
[342659374,1732027867318,-45000.0,0.00022,3]
[342659375,1732027867327,-300.0,0.00022,60]
[342659376,1732027867339,-7972.43030298,0.00022,15]
[342659377,1732027867348,-200.0,0.00022,2]
[342659378,1732027867357,-150.0,0.00022,3]
[342659379,1732027867366,-244.35027284,0.00022,2]
[342659380,1732027867376,-250.0,0.00022,10]
[342659381,1732027867385,-42301.10410969,0.00022,2]
[342659382,1732027867395,-752.18455563,0.00022,7]
[342659383,1732027867404,-641.44456406,0.00022,2]
[342659384,1732027867414,-2110.0,0.00022,2]
[342659385,1732027867423,-200.0,0.00022,15]
[342659386,1732027867433,-150.0,0.00022,2]
[342659387,1732027867442,-462.25,0.00022,7]
[342659388,1732027867451,-1700.0,0.00022,2]
[342659389,1732027867461,-564.0,0.00022,2]
[342659390,1732027867470,-1256.0,0.00022,2]
[342659391,1732027867480,-560.0,0.00022,2]
[342659392,1732027867489,-1994.0,0.00022,2]
[342659393,1732027867498,-1926.0,0.00022,2]
[342659394,1732027867507,-3747.0,0.00022,2]
[342659395,1732027867519,-814.0,0.00022,2]
[342659396,1732027867529,-920.0,0.00022,2]
[342659397,1732027867539,-1260.0,0.00022,2]
[342659398,1732027867548,-3513.0,0.00022,2]
[342659399,1732027867558,-150.0,0.00022,2]
[342659400,1732027867567,-447.48640307,0.00022,4]
[342659401,1732027867576,-160.20028232,0.00022,4]
[342659402,1732027867586,-195.78455287,0.00022,4]
[342659403,1732027867595,-150.0,0.00022025,2]
[342659404,1732027867604,-150.0,0.00022029,2]
[342659405,1732027867613,-150.0,0.00022041,2]
[342659406,1732027867622,-150.0,0.00022041,2]
[342659407,1732027867631,-1009.82,0.000221,2]
[342659408,1732027867641,-321.39596675,0.00022109,2]
[342659409,1732027867650,-229.13864307,0.0002211,2]
[342659410,1732027867659,-151.0,0.00022172,7]
[342659411,1732027867669,-150.0,0.00022172,2]
[342659412,1732027867678,-150.0,0.00022191,4]
[342659413,1732027867687,-150.0,0.00022243,2]
[342659414,1732027867696,-150.0,0.00022253,2]
[342659415,1732027867706,-150.0,0.00022257,2]
[342659416,1732027867715,-150.0,0.00022258,2]
[342659417,1732027867724,-1500.0,0.00022265,2]
[342659418,1732027867733,-150.0,0.00022272,2]
[342659419,1732027867742,-150.0,0.00022285,2]
[342659420,1732027867751,-447.48640307,0.00022294,4]
[342659421,1732027867762,-160.20028232,0.00022294,4]
[342659422,1732027867772,-195.78455287,0.00022294,4]
[342659423,1732027867781,-150.0,0.00022299,2]
[342659424,1732027867791,-308.44,0.00022335,2]
[342659425,1732027867800,-150.0,0.00022355,2]
[342659426,1732027867809,-150.0,0.00022402,2]
[342659427,1732027867819,-150.0,0.00022402,2]
[342659428,1732027867828,-150.0,0.00022443,2]
[342659429,1732027867837,-150.0,0.00022446,2]
[342659430,1732027867846,-150.0,0.00022452,4]
[342659431,1732027867856,-150.0,0.00022456,2]
[342659432,1732027867866,-151.0,0.00022465,7]
[342659433,1732027867875,-151.0,0.00022465,7]
[342659434,1732027867885,-151.0,0.00022465,7]
[342659435,1732027867894,-151.0,0.00022465,7]
[342659436,1732027867904,-158.982263,0.00022465,7]
[342659437,1732027867913,-158.982263,0.00022465,7]
[342659438,1732027867923,-399.598778,0.00022465,7]
[342659439,1732027867933,-399.598778,0.00022465,7]
[342659440,1732027867942,-500.0,0.00022465,30]
[342659441,1732027867951,-500.0,0.00022465,30]
[342659442,1732027867962,-500.0,0.00022465,30]
[342659443,1732027867971,-500.0,0.00022465,30]
[342659444,1732027867980,-500.0,0.00022465,30]
[342659445,1732027867989,-500.0,0.00022465,30]
[342659446,1732027867998,-500.0,0.00022465,30]
[342659447,1732027868008,-500.0,0.00022465,30]
[342659448,1732027868022,-500.0,0.00022465,30]
[342659449,1732027868032,-500.0,0.00022465,30]
[342659450,1732027868042,-500.0,0.00022465,30]
[342659451,1732027868052,-500.0,0.00022465,30]
[342659452,1732027868062,-500.0,0.00022465,30]
[342659453,1732027868071,-543.73959837,0.00022465,30]
[342659454,1732027868080,-33807.65644774,0.000225,2]
[342659455,1732027868090,-2900.0,0.000225,15]
[342659456,1732027868099,-2110.0,0.000225,2]
[342659457,1732027868108,-150.0,0.00022528,2]
[342659458,1732027868118,-150.0,0.00022578,2]
[342659459,1732027868127,-183.16009767,0.00022582,2]
[342659460,1732027868136,-447.48640307,0.00022588,4]
[342659461,1732027868145,-160.20028232,0.00022588,4]
[342659462,1732027868154,-195.78455287,0.00022588,4]
[342659463,1732027868164,-150.0,0.00022595,2]
[342659464,1732027868173,-218.79,0.00022603,2]
[342659465,1732027868182,-417.319908,0.00022603,7]
[342659466,1732027868191,-417.319908,0.00022603,7]
[342659467,1732027868201,-150.0,0.0002261,2]
[342659468,1732027868210,-150.0,0.00022622,2]
[342659469,1732027868219,-150.0,0.00022641,2]
[342659470,1732027868228,-150.0,0.00022664,2]
[342659471,1732027868238,-150.0,0.00022693,2]
[342659472,1732027868247,-150.0,0.00022718,2]
[342659473,1732027868257,-199.729,0.0002277,60]
[342659474,1732027868270,-150.0,0.00022783,4]
[342659475,1732027868280,-150.0,0.00022803,2]
[342659476,1732027868289,-150.0,0.00022817,2]
[342659477,1732027868298,-150.0,0.00022818,2]
[342659478,1732027868308,-150.0,0.00022826,2]
[342659479,1732027868317,-150.0,0.00022828,2]
[342659480,1732027868327,-150.0,0.00022858,2]
[342659481,1732027868341,-150.0,0.00022877,2]
[342659482,1732027868351,-150.0,0.0002288,2]
[342659483,1732027868360,-447.48640307,0.00022881,4]
[342659484,1732027868369,-160.20028232,0.00022881,4]
[342659485,1732027868381,-195.78455287,0.00022881,4]
[342659486,1732027868390,-150.0,0.00022902,2]
[342659487,1732027868400,-150.0,0.00022905,2]
[342659488,1732027868410,-150.0,0.00022907,2]
[342659489,1732027868420,-150.0,0.00022971,2]
[342659490,1732027868430,-150.0,0.00022982,2]
[342659491,1732027868439,-1354.86750689,0.0002299,2]
[342659492,1732027868449,-150.0,0.00022993,2]
[342659493,1732027868458,-200.0,0.00023,2]
[342659494,1732027868467,-250.0,0.00023,10]
[342659495,1732027868477,-16137.46484018,0.00023,3]
[342659496,1732027868487,-991.60289779,0.00023,14]
[342659497,1732027868498,-1063.53760751,0.00023,14]
[342659498,1732027868508,-320.0,0.00023,10]
[342659499,1732027868520,-900.0,0.00023,24]
[342659500,1732027868530,-2110.0,0.00023,2]
[342659501,1732027868538,-3617.27401938,0.00023,2]
[342659502,1732027868548,-150.0,0.00023,7]
[342659503,1732027868560,-2000.0,0.00023,2]
[342659504,1732027868569,-200.0,0.00023,2]
[342659505,1732027868579,-200.0,0.00023,2]
[342659506,1732027868588,-2000.0,0.00023,2]
[342659507,1732027868598,-200.0,0.00023,2]
[342659508,1732027868609,-266.56630132,0.0002301,2]
[342659509,1732027868618,-800.0,0.00023014,2]
[342659510,1732027868628,-800.0,0.00023014,2]
[342659511,1732027868638,-308.44,0.0002315,2]
[342659512,1732027868646,-447.48640307,0.00023175,4]
[342659513,1732027868656,-160.20028232,0.00023175,4]
[342659514,1732027868665,-195.78455287,0.00023175,4]
[342659515,1732027868674,-150.0,0.00023198,4]
[342659516,1732027868684,-49709.10434448,0.000232,2]
[342659517,1732027868693,-565.92431269,0.0002322,2]
[342659518,1732027868703,-199.749,0.0002322,60]
[342659519,1732027868712,-2000.0,0.0002323,2]
[342659520,1732027868722,-200.0,0.0002323,2]
[342659521,1732027868732,-2000.0,0.0002323,2]
[342659522,1732027868741,-200.0,0.0002323,2]
[342659523,1732027868751,-4125.24,0.00023287,7]
[342659524,1732027868762,-2000.0,0.00023462,2]
[342659525,1732027868772,-200.0,0.00023462,2]
[342659526,1732027868781,-2000.0,0.00023462,2]
[342659527,1732027868791,-200.0,0.00023462,2]
[342659528,1732027868800,-447.48640307,0.00023469,4]
[342659529,1732027868809,-160.20028232,0.00023469,4]
[342659530,1732027868819,-195.78455287,0.00023469,4]
[342659531,1732027868829,-1058.71,0.0002348,2]
[342659532,1732027868838,-2110.0,0.000235,2]
[342659533,1732027868848,-152.0,0.00023503,4]
[342659534,1732027868857,-1009.82,0.0002352,2]
[342659535,1732027868867,-500.0,0.00023564,2]
[342659536,1732027868876,-625708.3668731,0.0002361,7]
[342659537,1732027868885,-292.450624,0.0002361,7]
[342659538,1732027868895,-292.450624,0.0002361,7]
[342659539,1732027868904,-166.543521,0.0002361,7]
[342659540,1732027868913,-1207.212369,0.0002361,7]
[342659541,1732027868923,-1207.212369,0.0002361,7]
[342659542,1732027868932,-877.73567,0.0002361,7]
[342659543,1732027868942,-877.73567,0.0002361,7]
[342659544,1732027868952,-151.0,0.0002361,7]
[342659545,1732027868962,-275.671607,0.0002361,7]
[342659546,1732027868971,-261.431179,0.0002361,7]
[342659547,1732027868981,-261.431179,0.0002361,7]
[342659548,1732027868990,-151.0,0.0002361,7]
[342659549,1732027869000,-654.359303,0.0002361,7]
[342659550,1732027869009,-654.359303,0.0002361,7]
[342659551,1732027869022,-379.853201,0.0002361,7]
[342659552,1732027869032,-379.853201,0.0002361,7]
[342659553,1732027869041,-151.0,0.0002361,7]
[342659554,1732027869051,-151.0,0.0002361,7]
[342659555,1732027869060,-159.741565,0.0002361,7]
[342659556,1732027869069,-159.741565,0.0002361,7]
[342659557,1732027869079,-1098.619911,0.0002361,7]
[342659558,1732027869091,-1098.619911,0.0002361,7]
[342659559,1732027869100,-228.011085,0.0002361,7]
[342659560,1732027869110,-228.011085,0.0002361,7]
[342659561,1732027869119,-151.0,0.0002361,7]
[342659562,1732027869128,-151.0,0.0002361,7]
[342659563,1732027869138,-151.0,0.0002361,7]
[342659564,1732027869148,-1701.719222,0.0002361,7]
[342659565,1732027869157,-1701.719222,0.0002361,7]
[342659566,1732027869167,-740.730375,0.0002361,7]
[342659567,1732027869176,-740.730375,0.0002361,7]
[342659568,1732027869185,-158.593645,0.0002361,7]
[342659569,1732027869194,-158.593645,0.0002361,7]
[342659570,1732027869203,-447.488631,0.0002361,7]
[342659571,1732027869213,-205.590034,0.0002361,7]
[342659572,1732027869222,-447.488631,0.0002361,7]
[342659573,1732027869232,-205.590034,0.0002361,7]
[342659574,1732027869241,-419.839689,0.0002361,7]
[342659575,1732027869251,-625.07793,0.0002361,7]
[342659576,1732027869260,-419.839689,0.0002361,7]
[342659577,1732027869274,-151.0,0.0002361,7]
[342659578,1732027869284,-625.07793,0.0002361,7]
[342659579,1732027869294,-151.0,0.0002361,7]
[342659580,1732027869303,-600.0,0.0002361,7]
[342659581,1732027869312,-600.0,0.0002361,7]
[342659582,1732027869321,-151.0,0.0002361,7]
[342659583,1732027869332,-159.576969,0.0002361,7]
[342659584,1732027869342,-298.362701,0.0002361,7]
[342659585,1732027869351,-159.576969,0.0002361,7]
[342659586,1732027869360,-298.362701,0.0002361,7]
[342659587,1732027869369,-151.0,0.0002361,7]
[342659588,1732027869380,-167.488161,0.0002361,7]
[342659589,1732027869390,-167.488161,0.0002361,7]
[342659590,1732027869399,-151.0,0.0002361,7]
[342659591,1732027869410,-374.435502,0.0002361,7]
[342659592,1732027869419,-374.435502,0.0002361,7]
[342659593,1732027869428,-2142.500908,0.0002361,7]
[342659594,1732027869437,-2142.500908,0.0002361,7]
[342659595,1732027869446,-302.433536,0.0002361,7]
[342659596,1732027869455,-302.433536,0.0002361,7]
[342659597,1732027869465,-253.172762,0.0002361,7]
[342659598,1732027869474,-253.172762,0.0002361,7]
[342659599,1732027869483,-151.0,0.0002361,7]
[342659600,1732027869492,-469.63876,0.0002361,7]
[342659601,1732027869501,-469.63876,0.0002361,7]
[342659602,1732027869510,-151.0,0.0002361,7]
[342659603,1732027869523,-1353.867981,0.0002361,7]
[342659604,1732027869532,-151.0,0.0002361,7]
[342659605,1732027869541,-1353.867981,0.0002361,7]
[342659606,1732027869551,-151.0,0.0002361,7]
[342659607,1732027869560,-151.0,0.0002361,7]
[342659608,1732027869570,-1308.35475,0.0002361,7]
[342659609,1732027869579,-1308.35475,0.0002361,7]
[342659610,1732027869588,-699.733326,0.0002361,7]
[342659611,1732027869598,-699.733326,0.0002361,7]
[342659612,1732027869608,-4493.276102,0.0002361,7]
[342659613,1732027869617,-720.751891,0.0002361,7]
[342659614,1732027869627,-4493.276102,0.0002361,7]
[342659615,1732027869636,-720.751891,0.0002361,7]
[342659616,1732027869645,-480.058897,0.0002361,7]
[342659617,1732027869654,-480.058897,0.0002361,7]
[342659618,1732027869664,-474.793912,0.0002361,7]
[342659619,1732027869673,-474.793912,0.0002361,7]
[342659620,1732027869683,-571.912875,0.0002361,7]
[342659621,1732027869692,-571.912875,0.0002361,7]
[342659622,1732027869748,-151.0,0.0002361,7]
[342659623,1732027869757,-151.0,0.0002361,7]
[342659624,1732027869770,-151.0,0.0002361,7]
[342659625,1732027869781,-219.846201,0.0002361,7]
[342659626,1732027869790,-600.054296,0.0002361,7]
[342659627,1732027869799,-219.846201,0.0002361,7]
[342659628,1732027869808,-600.054296,0.0002361,7]
[342659629,1732027869817,-151.0,0.0002361,7]
[342659630,1732027869826,-151.0,0.0002361,7]
[342659631,1732027869836,-492.45,0.0002361,7]
[342659632,1732027869846,-492.45,0.0002361,7]
[342659633,1732027869857,-151.0,0.0002361,7]
[342659634,1732027869867,-584.547328,0.0002361,7]
[342659635,1732027869876,-584.547328,0.0002361,7]
[342659636,1732027869886,-209.479131,0.0002361,7]
[342659637,1732027869895,-209.479131,0.0002361,7]
[342659638,1732027869904,-649.373281,0.0002361,7]
[342659639,1732027869914,-261.438561,0.0002361,7]
[342659640,1732027869923,-649.373281,0.0002361,7]
[342659641,1732027869933,-450.757394,0.0002361,7]
[342659642,1732027869942,-450.757394,0.0002361,7]
[342659643,1732027869951,-4284.791342,0.0002361,7]
[342659644,1732027869960,-4284.791342,0.0002361,7]
[342659645,1732027869969,-151.0,0.0002361,7]
[342659646,1732027869979,-5218.185366,0.0002361,7]
[342659647,1732027869988,-5218.185366,0.0002361,7]
[342659648,1732027869997,-837.260889,0.0002361,7]
[342659649,1732027870006,-837.260889,0.0002361,7]
[342659650,1732027870019,-1216.387468,0.0002361,7]
[342659651,1732027870029,-1216.387468,0.0002361,7]
[342659652,1732027870038,-155.155781,0.0002361,7]
[342659653,1732027870047,-155.155781,0.0002361,7]
[342659654,1732027870056,-164.5695,0.0002361,7]
[342659655,1732027870066,-164.5695,0.0002361,7]
[342659656,1732027870075,-151.0,0.0002361,7]
[342659657,1732027870084,-697.462973,0.0002361,7]
[342659658,1732027870093,-151.0,0.0002361,7]
[342659659,1732027870103,-697.462973,0.0002361,7]
[342659660,1732027870112,-2734.916534,0.0002361,7]
[342659661,1732027870121,-2734.916534,0.0002361,7]
[342659662,1732027870130,-151.0,0.0002361,7]
[342659663,1732027870139,-756.26922,0.0002361,7]
[342659664,1732027870148,-454.7,0.0002361,7]
[342659665,1732027870157,-151.0,0.0002361,7]
[342659666,1732027870167,-491.910606,0.0002361,7]
[342659667,1732027870175,-454.7,0.0002361,7]
[342659668,1732027870185,-756.26922,0.0002361,7]
[342659669,1732027870194,-491.910606,0.0002361,7]
[342659670,1732027870204,-762.994621,0.0002361,7]
[342659671,1732027870213,-762.994621,0.0002361,7]
[342659672,1732027870222,-305.484838,0.0002361,7]
[342659673,1732027870231,-276.859952,0.0002361,7]
[342659674,1732027870240,-305.484838,0.0002361,7]
[342659675,1732027870249,-276.859952,0.0002361,7]
[342659676,1732027870258,-795.371889,0.0002361,7]
[342659677,1732027870273,-795.371889,0.0002361,7]
[342659678,1732027870282,-752.768844,0.0002361,7]
[342659679,1732027870291,-752.768844,0.0002361,7]
[342659680,1732027870300,-930.621483,0.0002361,7]
[342659681,1732027870310,-262.646924,0.0002361,7]
[342659682,1732027870319,-930.621483,0.0002361,7]
[342659683,1732027870328,-262.646924,0.0002361,7]
[342659684,1732027870343,-2573.487954,0.0002361,7]
[342659685,1732027870353,-2573.487954,0.0002361,7]
[342659686,1732027870363,-896.231189,0.0002361,7]
[342659687,1732027870372,-253.79237,0.0002361,7]
[342659688,1732027870382,-896.231189,0.0002361,7]
[342659689,1732027870391,-10000.0,0.0002361,7]
[342659690,1732027870400,-10000.0,0.0002361,7]
[342659691,1732027870410,-151.0,0.0002361,7]
[342659692,1732027870419,-10000.0,0.0002361,7]
[342659693,1732027870428,-151.0,0.0002361,7]
[342659694,1732027870437,-10000.0,0.0002361,7]
[342659695,1732027870446,-513.367611,0.0002361,7]
[342659696,1732027870456,-10000.0,0.0002361,7]
[342659697,1732027870469,-513.367611,0.0002361,7]
[342659698,1732027870479,-10000.0,0.0002361,7]
[342659699,1732027870488,-10000.0,0.0002361,7]
[342659700,1732027870498,-163.655185,0.0002361,7]
[342659701,1732027870507,-163.655185,0.0002361,7]
[342659702,1732027870519,-500.0,0.0002361,7]
[342659703,1732027870528,-500.0,0.0002361,7]
[342659704,1732027870537,-312.196955,0.0002361,7]
[342659705,1732027870546,-312.196955,0.0002361,7]
[342659706,1732027870555,-547.483222,0.0002361,7]
[342659707,1732027870565,-547.483222,0.0002361,7]
[342659708,1732027870574,-151.0,0.0002361,7]
[342659709,1732027870583,-151.0,0.0002361,7]
[342659710,1732027870592,-150.0,0.00023645,4]
[342659711,1732027870602,-199.693,0.0002368,31]
[342659712,1732027870612,-2000.0,0.00023697,2]
[342659713,1732027870621,-200.0,0.00023697,2]
[342659714,1732027870630,-2000.0,0.00023697,2]
[342659715,1732027870640,-200.0,0.00023697,2]
[342659716,1732027870649,-447.48640307,0.00023763,4]
[342659717,1732027870658,-160.20028232,0.00023763,4]
[342659718,1732027870667,-195.78455287,0.00023763,4]
[342659719,1732027870676,-150.0,0.00023861,4]
[342659720,1732027870685,-332405.28347088,0.00023922,2]
[342659721,1732027870695,-2898.71652912,0.00023922,2]
[342659722,1732027870704,-2000.0,0.00023934,2]
[342659723,1732027870714,-200.0,0.00023934,2]
[342659724,1732027870723,-2000.0,0.00023934,2]
[342659725,1732027870733,-200.0,0.00023934,2]
[342659726,1732027870742,-150.0,0.00023943,4]
[342659727,1732027870752,-308.44,0.00023965,2]
[342659728,1732027870761,-4208.53373006,0.00023999,2]
[342659729,1732027870774,-50000.0,0.00024,4]
[342659730,1732027870783,-626.79426785,0.00024,2]
[342659731,1732027870793,-12056.34558225,0.00024,2]
[342659732,1732027870802,-973.0077223,0.00024,2]
[342659733,1732027870811,-250.0,0.00024,10]
[342659734,1732027870821,-1000.0,0.00024,2]
[342659735,1732027870831,-1108.38888046,0.00024,2]
[342659736,1732027870840,-7252.73332241,0.00024,2]
[342659737,1732027870849,-22450.61680122,0.00024,2]
[342659738,1732027870858,-1000.0,0.00024,7]
[342659739,1732027870867,-900.0,0.00024,25]
[342659740,1732027870876,-2110.0,0.00024,2]
[342659741,1732027870885,-848.9555223,0.00024,30]
[342659742,1732027870895,-1000.0,0.00024,60]
[342659743,1732027870904,-1024.999999,0.00024,2]
[342659744,1732027870913,-3000.0,0.00024,2]
[342659745,1732027870923,-1750.0,0.00024,2]
[342659746,1732027870932,-776.24811427,0.0002402,2]
[342659747,1732027870941,-447.48640307,0.00024056,4]
[342659748,1732027870950,-160.20028232,0.00024056,4]
[342659749,1732027870960,-195.78455287,0.00024056,4]
[342659750,1732027870970,-199.753,0.0002413,15]
[342659751,1732027870979,-401.80030964,0.0002421,2]
[342659752,1732027870989,-3521.98855664,0.0002421,2]
[342659753,1732027870998,-447.48640307,0.0002435,4]